bitfinex/quotes_SOLUSD_20250416
["timestamp","ask_amount","ask_price","bid_price","bid_amount"]
[1744764533469,14.89521495,126.36,126.33,83.0]
[1744764533665,7.9138968,126.36,126.33,97.89521495]
[1744764533983,7.9138968,126.36,126.33,83.0]
[1744764534476,34.60911175,126.36,126.33,83.0]
[1744764534679,19.7138968,126.36,126.33,83.0]
[1744764536600,36.14441175,126.36,126.31,40.89521495]
[1744764537170,30.7764065,126.36,126.31,35.5272097]
[1744764537472,21.2491968,126.36,126.32,9.5272097]
[1744764539486,30.7764065,126.36,126.32,9.5272097]
[1744764540106,1.5353,126.36,126.34,9.5272097]
[1744764540288,0.03,126.38,126.35,9.5272097]
[1744764540487,0.03,126.38,126.37,9.5272097]
[1744764541174,0.03,126.38,126.36,14.87485136]
[1744764541363,26.67485136,126.37,126.31,83.0]
[1744764541569,14.87485136,126.35,126.31,83.0]
[1744764542087,14.87485136,126.35,126.31,97.87485136]
[1744764542272,14.87485136,126.36,126.31,97.87485136]
[1744764542595,14.87485136,126.35,126.31,97.87485136]
[1744764543489,7.91514959,126.34,126.31,97.87485136]
[1744764543687,7.91485268,126.35,126.31,97.87485136]
[1744764543867,11.8,126.37,126.34,14.87485136]
[1744764544071,11.8,126.37,126.35,14.87485136]
[1744764545189,11.8,126.37,126.31,83.0]
[1744764545497,9.55211965,126.38,126.36,14.87485136]
[1744764549494,9.55211965,126.38,126.35,14.87485136]
[1744764549989,0.03,126.38,126.36,14.87485136]
[1744764552198,0.03,126.38,126.37,14.87485136]
[1744764556301,0.03,126.38,126.37,33.66666179]
[1744764556487,0.03,126.4,126.39,41.01701293]
[1744764556688,0.03,126.4,126.39,124.01701293]
[1744764557191,0.03,126.4,126.39,123.87485136]
[1744764557402,0.03,126.4,126.39,109.0]
[1744764557598,0.03,126.4,126.36,134.5]
[1744764557784,0.03,126.4,126.34,83.0]
[1744764557785,14.87485136,126.38,126.34,97.87485136]
[1744764557986,14.87485136,126.38,126.34,123.87485136]
[1744764558180,16.41585136,126.39,126.35,14.87485136]
[1744764558389,9.45343945,126.39,126.35,14.87485136]
[1744764558592,24.32829081,126.39,126.35,14.87485136]
[1744764559198,9.45343945,126.39,126.35,14.87485136]
[1744764559708,24.32829081,126.39,126.34,123.87485136]
[1744764560608,24.32829081,126.39,126.35,14.87485136]
[1744764563311,9.45343945,126.39,126.35,14.87485136]
[1744764563484,1.541,126.39,126.36,14.87485136]
[1744764563887,1.541,126.39,126.37,14.87485136]
[1744764566716,0.03,126.4,126.38,14.87485136]
[1744764567091,7.94150834,126.4,126.38,14.87485136]
[1744764567391,7.94150834,126.4,126.37,14.87485136]
[1744764568216,22.8163597,126.4,126.35,14.87485136]
[1744764568397,14.87485136,126.39,126.34,123.87485136]
[1744764568713,7.91244654,126.39,126.35,14.87485136]
[1744764569614,7.91244654,126.39,126.36,14.87485136]
[1744764569814,7.9413924,126.4,126.36,14.87485136]
[1744764570921,7.9413924,126.4,126.34,109.0]
[1744764570922,7.9413924,126.4,126.37,14.87485136]
[1744764571218,0.03,126.4,126.39,14.87485136]
[1744764575519,0.03,126.4,126.38,14.87485136]
[1744764575825,0.03,126.4,126.39,14.87485136]
[1744764576726,0.03,126.4,126.37,40.87485136]
[1744764577638,0.03,126.4,126.39,14.87485136]
[1744764578222,0.03,126.4,126.38,14.87485136]
[1744764578624,0.03,126.4,126.37,26.0]
[1744764578808,1.6465,126.4,126.37,26.0]
[1744764579126,1.6465,126.4,126.37,40.87485136]
[1744764579425,1.6465,126.4,126.38,14.87485136]
[1744764579604,1.6465,126.4,126.39,14.87485136]
[1744764580131,1.6465,126.4,126.38,14.87485136]
[1744764581930,0.03,126.4,126.38,14.87485136]
[1744764582134,0.03,126.4,126.37,26.0]
[1744764582135,0.03,126.4,126.39,14.87485136]
[1744764584033,0.03,126.4,126.37,40.87485136]
[1744764584334,0.03,126.4,126.37,26.0]
[1744764584529,0.03,126.4,126.38,14.87485136]
[1744764591546,0.03,126.4,126.37,40.87485136]
[1744764591733,14.90485136,126.4,126.34,83.0]
[1744764591927,14.90485136,126.4,126.35,14.87485136]
[1744764592842,7.91201835,126.39,126.35,14.87485136]
[1744764594944,7.91201835,126.39,126.36,14.87485136]
[1744764596534,7.91201835,126.39,126.35,14.87485136]
[1744764596938,1.6438,126.38,126.34,123.87485136]
[1744764598931,9.5566383,126.38,126.35,14.87485136]
[1744764599339,1.6438,126.38,126.36,14.87485136]
[1744764600850,9.55663782,126.38,126.36,14.87485136]
[1744764601046,9.55663782,126.38,126.34,123.87485136]
[1744764601356,14.87485136,126.36,126.31,14.87485136]
[1744764601528,14.87485136,126.35,126.3,14.93785137]
[1744764601929,14.87485136,126.35,126.3,40.93785137]
[1744764602229,14.87485136,126.36,126.31,14.87485136]
[1744764603052,14.87485136,126.36,126.32,14.87485136]
[1744764603053,7.91452314,126.35,126.32,14.87485136]
[1744764603455,22.78906945,126.36,126.32,14.87485136]
[1744764603630,7.91421809,126.36,126.32,14.87485136]
[1744764603826,1.6438,126.38,126.35,14.87485136]
[1744764604032,1.6438,126.38,126.37,14.87485136]
[1744764604252,7.94166744,126.4,126.37,14.87485136]
[1744764604936,14.87485136,126.39,126.33,26.0]
[1744764605259,7.9126444,126.38,126.34,14.87485136]
[1744764605564,7.9126444,126.38,126.35,14.87485136]
[1744764606051,22.78749576,126.38,126.34,14.87485136]
[1744764606254,22.78749576,126.38,126.33,26.0]
[1744764606255,22.78749576,126.38,126.33,40.87485136]
[1744764606566,7.9386,126.37,126.32,14.87485136]
[1744764606739,22.81345136,126.37,126.33,14.87485136]
[1744764606942,14.87485136,126.36,126.32,14.87485136]
[1744764607670,14.87485136,126.36,126.3,83.06300001]
[1744764607671,16.38995136,126.33,126.3,83.06300001]
[1744764607836,14.87485136,126.32,126.3,0.06300001]
[1744764608846,26.63485136,126.31,126.3,0.06300001]
[1744764609142,45.28450022,126.31,126.3,0.06300001]
[1744764611158,34.55188089,126.31,126.3,0.06300001]
[1744764612454,53.20152975,126.31,126.3,0.06300001]
[1744764613067,1.65626157,126.3,126.29,0.063]
[1744764613265,24.4487693,126.3,126.29,0.063]
[1744764613750,18.64964886,126.29,126.26,0.063]
[1744764613957,39.52870022,126.27,126.26,0.063]
[1744764614167,20.27664886,126.25,126.24,0.063]
[1744764614347,73.05366179,126.25,126.18,83.0]
[1744764614557,14.87485136,126.22,126.18,83.0]
[1744764614749,14.87485136,126.21,126.18,83.0]
[1744764615245,7.9245582,126.19,126.15,14.87485136]
[1744764615964,26.10146576,126.21,126.14,26.0]
[1744764615965,14.216578,126.21,126.18,14.87485136]
[1744764616264,19.703378,126.21,126.17,14.87485136]
[1744764616772,19.703378,126.21,126.18,14.87485136]
[1744764617065,14.87485136,126.19,126.15,14.87485136]
[1744764617266,7.92518624,126.18,126.14,14.87485136]
[1744764617468,7.92518624,126.18,126.14,40.87485136]
[1744764617871,7.92518624,126.18,126.14,14.87485136]
[1744764618569,9.46872905,126.19,126.15,14.87485136]
[1744764618744,1.5439,126.19,126.16,14.87485136]
[1744764618942,19.68420825,126.2,126.18,14.87485136]
[1744764619974,19.68420825,126.2,126.17,14.87485136]
[1744764620269,16.52865136,126.22,126.18,14.87485136]
[1744764620484,11.76,126.21,126.19,14.87485136]
[1744764621775,9.57696812,126.22,126.19,14.87485136]
[1744764621964,11.76,126.21,126.19,14.87485136]
[1744764622168,11.76,126.21,126.17,14.87485136]
[1744764622368,11.76,126.2,126.17,14.87485136]
[1744764622581,11.76,126.2,126.16,14.87485136]
[1744764623078,11.76,126.2,126.17,14.87485136]
[1744764623756,7.9245582,126.19,126.17,14.87485136]
[1744764626559,7.9245582,126.19,126.15,14.87485136]
[1744764626973,7.9245582,126.19,126.16,14.87485136]
[1744764628687,7.9245582,126.19,126.15,14.87485136]
[1744764629185,42.61080507,126.19,126.15,14.87485136]
[1744764629370,48.90330507,126.19,126.14,14.87485136]
[1744764629973,18.64964886,126.18,126.14,14.87485136]
[1744764630163,33.52450022,126.18,126.13,97.87485136]
[1744764630362,33.52450022,126.18,126.14,14.87485136]
[1744764630592,18.64964886,126.18,126.14,14.87485136]
[1744764630758,7.92581437,126.17,126.14,14.87485136]
[1744764631382,9.43523381,126.18,126.15,14.87485136]
[1744764631589,21.19523381,126.18,126.16,14.87485136]
[1744764631789,1.5098,126.18,126.17,14.87485136]
[1744764632094,13.2637,126.21,126.17,14.87485136]
[1744764632258,13.2637,126.21,126.2,14.87485136]
[1744764632585,13.2637,126.21,126.19,14.87485136]
[1744764632885,21.18748852,126.21,126.19,14.87485136]
[1744764633698,21.18748852,126.21,126.2,14.87485136]
[1744764633699,11.76,126.21,126.2,14.87485136]
[1744764633857,11.76,126.23,126.2,14.87485136]
[1744764634064,21.22534243,126.24,126.22,14.87485136]
[1744764634382,21.22534243,126.24,126.18,26.0]
[1744764634383,36.10019379,126.24,126.18,26.0]
[1744764634561,14.87485136,126.2,126.15,83.0]
[1744764634759,7.92707094,126.15,126.11,14.87485136]
[1744764634954,7.92707094,126.15,126.12,40.87485136]
[1744764635585,7.92707094,126.15,126.12,14.87485136]
[1744764635883,7.92707094,126.15,126.12,26.0]
[1744764636065,7.92707094,126.15,126.09,83.063]
[1744764636066,7.92675034,126.16,126.09,83.063]
[1744764636261,22.8016017,126.16,126.12,14.87485136]
[1744764636682,14.87485136,126.15,126.1,14.87485136]
[1744764636879,19.68769938,126.14,126.1,14.87485136]
[1744764637263,19.68769938,126.14,126.1,23.89853776]
[1744764637463,11.76,126.13,126.11,23.89853776]
[1744764637979,7.92769938,126.14,126.11,23.89853776]
[1744764638179,7.92769938,126.14,126.09,109.063]
[1744764638180,63.40548559,126.14,126.09,83.063]
[1744764638389,25.43353776,126.13,126.09,83.063]
[1744764638566,1.535,126.13,126.09,106.96153776]
[1744764638864,1.535,126.13,126.1,23.89853776]
[1744764639185,18.0736,126.14,126.11,23.89853776]
[1744764639486,6.3136,126.14,126.12,23.89853776]
[1744764639659,26.00158871,126.14,126.1,23.89853776]
[1744764640057,11.76,126.13,126.1,23.89853776]
[1744764640283,11.76,126.13,126.11,23.89853776]
[1744764640485,14.24158871,126.14,126.11,23.89853776]
[1744764640785,19.68856981,126.13,126.09,106.96153776]
[1744764641187,11.76,126.12,126.09,106.96153776]
[1744764642771,11.76,126.12,126.09,83.063]
[1744764642982,1.6137,126.1,126.09,0.063]
[1744764643285,25.51223776,126.1,126.09,0.063]
[1744764643663,1.6137,126.1,126.09,0.063]
[1744764644959,9.54391411,126.1,126.09,0.063]
[1744764646182,33.44245187,126.1,126.09,0.063]
[1744764646391,52.09210073,126.1,126.09,0.063]
[1744764646581,9.54391411,126.1,126.09,0.063]
[1744764646776,21.32391411,126.1,126.09,0.063]
[1744764648094,45.22245187,126.1,126.09,0.063]
[1744764648277,63.87210073,126.1,126.09,0.063]
[1744764649477,21.32391411,126.1,126.09,0.063]
[1744764651087,44.79181043,126.08,126.07,0.063]
[1744764651269,44.79181043,126.08,126.03,0.063]
[1744764651270,1.5916,126.06,126.03,0.063]
[1744764651472,42.54818662,126.04,126.03,0.063]
[1744764652375,23.89853776,126.05,126.03,0.063]
[1744764652671,11.76,126.04,126.03,0.063]
[1744764653173,19.6939892,126.04,126.03,0.063]
[1744764653373,7.9339892,126.04,126.03,0.063]
[1744764653780,19.6939892,126.04,126.03,0.063]
[1744764654289,62.24217582,126.04,126.03,0.063]
[1744764654490,7.9339892,126.04,126.03,0.063]
[1744764654788,19.6939892,126.04,126.03,0.063]
[1744764656188,43.59252696,126.04,126.03,0.063]
[1744764657088,49.94622696,126.04,126.03,0.063]
[1744764657891,68.73803739,126.04,126.03,0.063]
[1744764659196,59.65951733,126.04,126.03,0.063]
[1744764659896,44.69733806,126.04,126.03,0.063]
[1744764660503,7.9339892,126.04,126.03,0.063]
[1744764660804,11.76,126.04,126.03,15.02517927]
[1744764661091,11.76,126.04,126.03,0.063]
[1744764661479,19.6939892,126.04,126.03,0.063]
[1744764662199,19.69351396,126.05,126.03,15.02517927]
[1744764662399,19.69351396,126.05,126.03,0.063]
[1744764662705,19.69351396,126.05,126.03,15.02517927]
[1744764663209,11.76,126.05,126.03,15.02517927]
[1744764663408,19.69238762,126.07,126.04,14.96217927]
[1744764663700,7.9317468,126.08,126.05,14.96217927]
[1744764663889,19.6917468,126.08,126.05,14.96217927]
[1744764664091,7.9317468,126.08,126.05,14.96217927]
[1744764664611,19.6917468,126.08,126.05,14.96217927]
[1744764664815,7.92518624,126.18,126.1,26.0]
[1744764665115,20.0,126.22,126.1,26.0]
[1744764665116,17.8961,126.23,126.17,14.96217927]
[1744764665294,11.76,126.23,126.21,14.96217927]
[1744764666423,11.76,126.23,126.22,14.96217927]
[1744764666790,12.3212307,126.24,126.22,14.96217927]
[1744764666992,7.92040006,126.26,126.23,14.96217927]
[1744764667316,7.92040006,126.26,126.24,23.84428172]
[1744764667510,11.76,126.27,126.25,23.84428172]
[1744764667730,11.76,126.27,126.26,23.84428172]
[1744764667923,19.67953749,126.27,126.25,23.84428172]
[1744764668614,11.76,126.27,126.26,23.84428172]
[1744764668818,9.53501562,126.29,126.26,23.84428172]
[1744764669019,7.91831562,126.29,126.27,23.84428172]
[1744764669522,7.94779758,126.3,126.27,23.84428172]
[1744764670423,42.49393058,126.29,126.24,23.84428172]
[1744764671018,27.74193851,126.3,126.25,23.84428172]
[1744764671229,23.84428172,126.28,126.22,109.0]
[1744764671406,23.84428172,126.28,126.23,23.84428172]
[1744764671729,23.84428172,126.28,126.22,109.0]
[1744764672022,23.84428172,126.27,126.22,132.84428172]
[1744764672219,23.84428172,126.25,126.22,83.0]
[1744764672392,7.92204705,126.23,126.2,23.84428172]
[1744764672595,31.76632877,126.23,126.18,23.84428172]
[1744764672809,23.84428172,126.21,126.17,23.84428172]
[1744764673008,23.84428172,126.22,126.17,23.84428172]
[1744764673321,23.84428172,126.22,126.18,23.84428172]
[1744764673714,27.72716469,126.23,126.18,23.84428172]
[1744764673715,51.57144641,126.23,126.18,23.84428172]
[1744764673913,23.84428172,126.22,126.17,23.84428172]
[1744764674113,7.92016473,126.26,126.21,23.84428172]
[1744764674297,7.92016473,126.26,126.23,23.84428172]
[1744764674724,7.91953749,126.27,126.23,23.84428172]
[1744764675925,7.91953749,126.27,126.24,23.84428172]
[1744764677018,19.67907812,126.28,126.25,23.84428172]
[1744764677414,63.32063573,126.28,126.23,23.84428172]
[1744764679040,19.67907812,126.28,126.24,23.84428172]
[1744764679231,19.67907812,126.28,126.25,23.84428172]
[1744764680122,19.67907812,126.28,126.27,23.84428172]
[1744764680123,11.76,126.28,126.27,23.84428172]
[1744764680327,7.91852114,126.29,126.27,23.84428172]
[1744764681236,7.91852114,126.29,126.26,23.84428172]
[1744764682216,7.94765637,126.3,126.26,23.84428172]
[1744764684038,51.58607902,126.3,126.25,23.84428172]
[1744764684342,23.84428172,126.29,126.24,23.84428172]
[1744764684535,27.7417973,126.3,126.25,23.84428172]
[1744764684536,51.58607902,126.3,126.25,23.84428172]
[1744764684736,51.58607902,126.3,126.26,23.84428172]
[1744764685044,27.7417973,126.3,126.26,23.84428172]
[1744764685340,0.03,126.3,126.29,23.84428172]
[1744764685535,7.94765637,126.3,126.26,23.84428172]
[1744764685942,31.79193809,126.3,126.25,23.84428172]
[1744764686241,51.58607902,126.3,126.26,23.84428172]
[1744764686545,27.7417973,126.3,126.26,23.84428172]
[1744764686848,7.94765637,126.3,126.27,23.84428172]
[1744764687036,7.94765637,126.3,126.28,23.84428172]
[1744764687542,51.58607902,126.3,126.25,23.84428172]
[1744764688041,7.94765637,126.3,126.27,23.84428172]
[1744764688235,7.94765637,126.3,126.28,23.84428172]
[1744764688644,0.03,126.3,126.28,23.84428172]
[1744764688946,0.03,126.3,126.29,23.84428172]
[1744764690743,0.03,126.3,126.29,31.76256503]
[1744764691038,0.03,126.3,126.29,23.84428172]
[1744764691235,0.03,126.3,126.29,31.76256503]
[1744764691443,0.03,126.3,126.29,23.84428172]
[1744764691949,0.03,126.3,126.29,31.76256503]
[1744764692249,0.03,126.3,126.29,23.84428172]
[1744764693218,0.03,126.3,126.26,83.0]
[1744764693420,0.03,126.3,126.27,23.84428172]
[1744764693621,0.03,126.3,126.26,83.0]
[1744764693622,0.03,126.3,126.28,23.84428172]
[1744764694250,0.03,126.3,126.27,23.84428172]
[1744764695346,0.03,126.3,126.26,106.84428172]
[1744764695543,25.39638172,126.29,126.22,19.66222728]
[1744764695751,23.84428172,126.28,126.24,26.0]
[1744764696128,23.84428172,126.28,126.23,23.84428172]
[1744764696329,23.84428172,126.27,126.22,23.84428172]
[1744764696544,23.84428172,126.26,126.21,106.84428172]
[1744764696929,23.84428172,126.27,126.22,23.84428172]
[1744764697131,7.92016473,126.26,126.22,23.84428172]
[1744764697458,23.84428172,126.25,126.21,83.0]
[1744764697776,23.84428172,126.23,126.18,160.5]
[1744764697945,23.84428172,126.22,126.17,23.84428172]
[1744764698752,23.84428172,126.22,126.16,109.0]
[1744764698753,30.40128172,126.24,126.19,23.84428172]
[1744764698956,6.557,126.24,126.2,23.84428172]
[1744764699166,7.92267469,126.22,126.16,90.92644054]
[1744764699347,7.92267469,126.22,126.18,23.84428172]
[1744764699735,33.41375641,126.22,126.17,23.84428172]
[1744764700259,9.56947469,126.22,126.18,23.84428172]
[1744764700558,9.56947469,126.22,126.19,23.84428172]
[1744764702063,9.56947469,126.22,126.18,23.84428172]
[1744764702364,29.37616142,126.22,126.18,23.84428172]
[1744764702661,53.22044314,126.22,126.17,23.84428172]
[1744764702838,23.84428172,126.21,126.16,106.84428172]
[1744764703237,53.22044314,126.22,126.17,23.84428172]
[1744764704665,54.23393058,126.21,126.14,26.0]
[1744764704863,23.84428172,126.19,126.12,114.7732009]
[1744764705042,23.84428172,126.19,126.15,23.84428172]
[1744764705242,23.84428172,126.2,126.15,23.84428172]
[1744764705458,7.9245582,126.19,126.15,23.84428172]
[1744764705659,23.84428172,126.18,126.14,23.84428172]
[1744764706051,51.58023543,126.19,126.14,23.84428172]
[1744764707772,23.84428172,126.18,126.13,49.84428172]
[1744764708267,23.84428172,126.18,126.13,23.84428172]
[1744764708765,18.64964886,126.18,126.14,23.84428172]
[1744764709192,7.9245582,126.19,126.12,114.77294084]
[1744764709394,7.9245582,126.19,126.15,23.84428172]
[1744764709689,31.76883992,126.19,126.14,23.84428172]
[1744764712195,7.9245582,126.19,126.16,23.84428172]
[1744764712393,7.9245582,126.19,126.17,23.84428172]
[1744764712995,7.92393026,126.2,126.17,23.84428172]
[1744764713475,7.92330243,126.21,126.17,23.84428172]
[1744764714300,7.92330243,126.21,126.15,7.92667453]
[1744764714507,23.84428172,126.17,126.12,83.0]
[1744764714677,23.84428172,126.14,126.12,83.0]
[1744764714875,23.84428172,126.14,126.09,23.84428172]
[1744764715100,23.84428172,126.13,126.07,7.93177734]
[1744764715395,23.84428172,126.14,126.09,23.84428172]
[1744764715801,7.92832791,126.13,126.09,23.84428172]
[1744764715987,31.77260963,126.13,126.09,23.84428172]
[1744764717372,7.92798838,126.14,126.11,23.84428172]
[1744764717589,7.92707094,126.15,126.11,23.84428172]
[1744764717800,31.77135266,126.15,126.11,23.84428172]
[1744764718287,7.92707094,126.15,126.11,23.84428172]
[1744764719291,51.40828172,126.16,126.12,23.84428172]
[1744764719292,59.33504027,126.16,126.12,23.84428172]
[1744764719493,1.564,126.16,126.13,23.84428172]
[1744764720096,6.1237,126.18,126.15,23.84428172]
[1744764720401,20.0,126.23,126.17,47.68856344]
[1744764720402,1.6054,126.22,126.17,47.68856344]
[1744764720610,1.6054,126.22,126.15,109.0]
[1744764720611,11.74,126.23,126.21,23.84428172]
[1744764720778,19.66214035,126.23,126.19,23.84428172]
[1744764720977,43.50642207,126.23,126.18,23.84428172]
[1744764721199,63.31153971,126.23,126.18,23.84428172]
[1744764722100,63.31153971,126.23,126.17,23.84428172]
[1744764722101,23.84428172,126.22,126.17,23.84428172]
[1744764722301,63.31153971,126.23,126.18,23.84428172]
[1744764722678,63.31153971,126.23,126.16,7.9261626]
[1744764722878,63.31153971,126.23,126.18,23.84428172]
[1744764723094,39.46725799,126.23,126.19,23.84428172]
[1744764723291,63.31153971,126.23,126.18,23.84428172]
[1744764724299,42.49393058,126.2,126.16,23.84428172]
[1744764724481,23.84428172,126.18,126.15,83.0]
[1744764724689,35.58428172,126.18,126.11,7.92932493]
[1744764725006,35.58428172,126.18,126.13,23.84428172]
[1744764725205,35.58428172,126.18,126.14,23.84428172]
[1744764725499,11.74,126.18,126.14,23.84428172]
[1744764725705,11.74,126.18,126.15,23.84428172]
[1744764726207,7.92581437,126.17,126.14,23.84428172]
[1744764727104,11.74,126.18,126.15,23.84428172]
[1744764727308,7.92330243,126.21,126.17,23.84428172]
[1744764727505,1.5744,126.23,126.2,23.84428172]
[1744764727704,1.5744,126.23,126.18,23.84428172]
[1744764727705,11.77,126.26,126.22,23.84428172]
[1744764728013,7.95037273,126.26,126.24,23.84428172]
[1744764728190,0.03,126.26,126.24,23.84428172]
[1744764729108,0.03,126.26,126.25,23.84428172]
[1744764729611,0.03,126.26,126.24,23.84428172]
[1744764730510,0.03,126.26,126.22,23.84428172]
[1744764731209,0.03,126.26,126.23,23.84428172]
[1744764731921,0.03,126.26,126.25,23.84428172]
[1744764733112,0.03,126.26,126.22,26.0]
[1744764733414,23.87428172,126.26,126.21,23.84428172]
[1744764733587,23.84428172,126.23,126.18,106.84428172]
[1744764734281,42.52393058,126.26,126.21,23.84428172]
[1744764734488,23.84428172,126.25,126.2,23.84428172]
[1744764734685,42.52393058,126.26,126.21,23.84428172]
[1744764734911,7.92079207,126.25,126.21,23.84428172]
[1744764735114,31.76507379,126.25,126.2,23.84428172]
[1744764735410,7.92079207,126.25,126.21,23.84428172]
[1744764736215,7.92079207,126.25,126.22,23.84428172]
[1744764736705,7.92079207,126.25,126.23,23.84428172]
[1744764736913,7.95016473,126.26,126.23,23.84428172]
[1744764737606,7.95016473,126.26,126.24,23.84428172]
[1744764737812,0.03,126.26,126.25,23.84428172]
[1744764738310,0.03,126.26,126.24,23.84428172]
[1744764738493,0.03,126.26,126.23,23.84428172]
[1744764738889,0.03,126.26,126.24,23.84428172]
[1744764739705,0.03,126.26,126.22,23.84428172]
[1744764739893,0.03,126.26,126.23,23.84428172]
[1744764740216,0.03,126.26,126.24,23.84428172]
[1744764741419,0.03,126.26,126.25,23.84428172]
[1744764741707,0.03,126.26,126.21,116.92324154]
[1744764742018,0.03,126.26,126.24,23.84428172]
[1744764742201,0.03,126.26,126.25,23.84428172]
[1744764744316,0.03,126.26,126.24,49.84428172]
[1744764744705,0.03,126.26,126.25,23.84428172]
[1744764745518,0.03,126.26,126.24,49.84428172]
[1744764746597,0.03,126.26,126.25,23.84428172]
[1744764747821,0.03,126.26,126.25,31.76507379]
[1744764748204,0.03,126.26,126.25,23.84428172]
[1744764749225,0.03,126.26,126.25,31.76507379]
[1744764750807,0.03,126.26,126.25,133.55688422]
[1744764751013,0.03,126.3,126.28,26.0]
[1744764751231,0.03,126.3,126.29,23.84428172]
[1744764752605,0.03,126.3,126.29,57.76256503]
[1744764754131,0.03,126.3,126.29,23.84428172]
[1744764755130,0.03,126.3,126.28,49.84428172]
[1744764755434,0.03,126.3,126.29,23.84428172]
[1744764756231,0.03,126.3,126.28,26.0]
[1744764756434,0.03,126.3,126.26,23.84428172]
[1744764756622,25.44848172,126.29,126.25,83.0]
[1744764757339,1.6042,126.29,126.25,106.84428172]
[1744764757632,1.6042,126.29,126.27,23.84428172]
[1744764758007,1.6042,126.29,126.28,23.84428172]
[1744764758322,9.52284851,126.29,126.25,83.0]
[1744764758536,23.84428172,126.28,126.25,83.0]
[1744764758743,23.84428172,126.27,126.2,7.92393026]
[1744764758928,25.47978172,126.26,126.21,23.84428172]
[1744764759128,1.6355,126.26,126.23,23.84428172]
[1744764759337,1.6355,126.26,126.24,23.84428172]
[1744764759525,1.6355,126.26,126.23,23.84428172]
[1744764759837,1.6355,126.26,126.22,49.84428172]
[1744764760027,1.6355,126.26,126.23,23.84428172]
[1744764760229,9.55617071,126.26,126.23,23.84428172]
[1744764760621,23.84428172,126.25,126.19,0.063]
[1744764760835,23.84428172,126.25,126.2,23.84428172]
[1744764761133,9.55617071,126.26,126.22,23.84428172]
[1744764761134,29.35658255,126.26,126.22,23.84428172]
[1744764761924,9.55617071,126.26,126.22,23.84428172]
[1744764762124,23.84428172,126.25,126.2,23.84428172]
[1744764762435,23.84428172,126.24,126.19,26.063]
[1744764762623,6.1854,126.23,126.19,49.90728172]
[1744764762818,6.1854,126.23,126.2,23.84428172]
[1744764763023,11.72,126.25,126.22,23.84428172]
[1744764763930,7.92141951,126.24,126.21,23.84428172]
[1744764764331,7.92141951,126.24,126.2,23.84428172]
[1744764765456,27.7249683,126.24,126.19,26.063]
[1744764765616,27.7249683,126.24,126.19,0.063]
[1744764765617,23.84428172,126.21,126.19,0.063]
[1744764765818,18.79181043,126.23,126.19,0.063]
[1744764766043,7.92267469,126.22,126.19,23.90728172]
[1744764766740,7.92267469,126.22,126.19,0.063]
[1744764767138,31.76695641,126.22,126.19,0.063]
[1744764767636,51.57364314,126.22,126.19,0.063]
[1744764768210,27.72936142,126.22,126.19,0.063]
[1744764768413,44.20949215,126.2,126.19,0.063]
[1744764768718,55.90949215,126.2,126.19,0.063]
[1744764768920,13.2734,126.2,126.19,0.063]
[1744764769419,21.19733026,126.2,126.19,0.063]
[1744764769918,63.83342241,126.2,126.19,0.063]
[1744764770640,63.83342241,126.2,126.13,106.90728172]
[1744764770641,23.84428172,126.17,126.13,106.90728172]
[1744764770847,23.84428172,126.17,126.13,83.063]
[1744764771418,7.92644261,126.16,126.13,83.063]
[1744764771641,11.7,126.15,126.13,83.063]
[1744764773419,7.92769938,126.14,126.13,0.063]
[1744764774926,19.64769938,126.14,126.13,0.063]
[1744764775646,7.92732375,126.15,126.13,0.063]
[1744764775844,11.72,126.14,126.13,0.063]
[1744764776144,11.72,126.14,126.13,23.90728172]
[1744764777230,11.72,126.14,126.13,14.99204712]
[1744764778949,19.64769938,126.14,126.13,0.063]
[1744764780243,7.92769938,126.14,126.13,0.063]
[1744764780547,11.72,126.15,126.13,14.99204712]
[1744764780718,11.72,126.15,126.13,0.063]
[1744764781148,35.61899908,126.15,126.13,0.063]
[1744764782547,7.92769938,126.14,126.13,0.063]
[1744764783932,38.46293765,126.18,126.13,23.96199908]
[1744764784143,35.61899908,126.15,126.13,0.063]
[1744764784456,7.92769938,126.14,126.13,0.063]
[1744764784656,31.82669846,126.14,126.13,0.063]
[1744764784863,7.92769938,126.14,126.13,0.063]
[1744764787963,24.04116065,126.16,126.13,23.96199908]
[1744764787964,7.92644261,126.16,126.13,23.96199908]
[1744764788262,11.72,126.15,126.13,23.96199908]